bitfinex-derivatives/quotes_ETHF0:USTF0_20250405
["timestamp","ask_amount","ask_price","bid_price","bid_amount"]
[1743886882712,2.9038,1789.6,1789.5,0.78262]
[1743886883012,6.6473,1789.6,1789.4,0.78263]
[1743886883207,7.42989,1789.6,1789.1,7.3988]
[1743886883407,3.0216,1789.5,1789.4,0.78267]
[1743886883709,3.0216,1789.5,1789.3,0.00838809]
[1743886883710,6.7651,1789.5,1789.3,0.79108809]
[1743886883914,0.78268,1789.4,1789.3,0.00838809]
[1743886884111,0.78283,1789.1,1788.8,0.78292]
[1743886884319,3.2078,1788.9,1788.7,0.78297]
[1743886884522,3.7435,1788.8,1788.7,0.78297]
[1743886885513,3.7435,1788.8,1788.6,0.00838809]
[1743886885714,3.7435,1788.8,1788.7,0.78298]
[1743886886514,3.7435,1788.8,1788.6,0.79138809]
[1743886886707,3.7435,1788.8,1788.6,0.00838809]
[1743886887009,3.2078,1788.7,1788.6,0.00838809]
[1743886887209,7.9345,1788.8,1788.6,0.00838809]
[1743886887413,3.7435,1788.8,1788.7,0.78298]
[1743886887625,3.7435,1788.8,1788.7,4.62098]
[1743886888411,0.00838809,1788.9,1788.8,0.78294]
[1743886888618,0.00838809,1788.9,1788.8,3.99074]
[1743886889611,2.9663,1789.5,1789.3,0.78271]
[1743886889916,3.7656,1789.4,1789.3,0.78271]
[1743886890120,5.843,1789.5,1789.4,0.78268]
[1743886890816,6.6423,1789.5,1789.4,0.78268]
[1743886891721,6.6423,1789.5,1789.3,4.5393]
[1743886892013,6.6423,1789.5,1789.4,0.78268]
[1743886892612,6.6423,1789.5,1789.3,4.53929]
[1743886892817,6.6423,1789.5,1789.2,3.2078]
[1743886893320,6.6423,1789.5,1789.3,3.8609]
[1743886893514,6.6423,1789.5,1789.4,0.78268]
[1743886893715,6.6423,1789.5,1789.3,4.6436]
[1743886893911,6.6423,1789.5,1789.4,0.78268]
[1743886896519,0.00838809,1789.6,1789.5,0.78263]
[1743886897614,8.09e-06,1789.6,1789.5,3.28263]
[1743886897916,6.7537,1790.4,1790.3,0.78228]
[1743886898123,6.73306158,1790.4,1790.3,0.78228]
[1743886898322,6.73306158,1790.4,1790.2,0.78229]
[1743886899721,3.2078,1790.3,1790.1,0.79072809]
[1743886899923,3.2078,1790.3,1790.1,0.77008967]
[1743886900125,3.58627,1790.4,1790.2,0.78233]
[1743886900421,3.56563158,1790.4,1790.2,0.78233]
[1743886900622,2.78336158,1790.4,1790.3,0.78228]
[1743886901418,6.64276158,1790.4,1790.3,0.78228]
[1743886901921,9.14276158,1790.4,1790.2,0.00838809]
[1743886902124,3.99008,1790.3,1790.2,0.00838809]
[1743886902425,0.7824,1790.1,1789.8,0.78247]
[1743886902619,4.64182,1790.0,1789.6,3.6923]
[1743886902820,3.2078,1789.9,1789.4,3.2078]
[1743886903017,3.2078,1789.7,1789.4,3.6923]
[1743886903221,3.8594,1789.6,1789.5,0.78262]
[1743886903422,3.8594,1789.6,1789.4,4.47495]
[1743886903622,3.8594,1789.6,1789.4,4.48333809]
[1743886903819,3.2078,1789.5,1789.4,0.00838809]
[1743886904118,3.2078,1789.5,1789.4,0.79106809]
[1743886904522,7.0186,1789.5,1789.4,0.79106809]
[1743886904922,3.8108,1789.5,1789.4,0.79106809]
[1743886905123,3.2078,1789.7,1789.5,0.78263]
[1743886905423,3.8108,1789.6,1789.5,0.78263]
[1743886906725,3.2078,1789.7,1789.6,0.78259]
[1743886907520,6.8254,1789.7,1789.5,4.62981]
[1743886907825,7.60798,1789.7,1789.5,0.78261]
[1743886908021,6.8254,1789.7,1789.5,0.78261]
[1743886908226,7.60796,1789.7,1789.5,0.78261]
[1743886909027,6.8254,1789.7,1789.4,0.00838809]
[1743886909227,7.60797,1789.7,1789.5,0.78262]
[1743886910525,7.60796,1789.7,1789.5,0.78261]
[1743886911625,7.60796,1789.7,1789.4,0.00838809]
[1743886911824,7.60796,1789.7,1789.5,0.7826]
[1743886912025,6.8254,1789.7,1789.6,0.78259]
[1743886913631,7.60797,1789.7,1789.5,0.78262]
[1743886913927,0.78259,1789.6,1789.4,0.79102809]
[1743886914123,3.6825,1789.5,1789.4,0.00838809]
[1743886914329,7.30913,1789.5,1789.4,0.00838809]
[1743886914730,7.30913,1789.5,1789.4,0.79106809]
[1743886914932,7.30913,1789.5,1789.4,0.00838809]
[1743886915524,6.5265,1789.5,1789.4,0.79106809]
[1743886922940,6.5265,1789.5,1789.4,0.00838809]
[1743886923336,6.5265,1789.5,1789.4,0.79106809]
[1743886930653,3.2078,1789.9,1789.4,0.79106809]
[1743886930654,3.2078,1789.9,1789.5,0.78263]
[1743886930852,3.947,1789.8,1789.7,0.78255]
[1743886931054,0.78256,1789.7,1789.5,0.78261]
[1743886931257,3.947,1789.6,1789.4,4.96903809]
[1743886931754,6.83603,1789.5,1789.4,0.00838809]
[1743886933556,0.78283,1789.1,1788.8,35.218]
[1743886933755,5.7911,1789.0,1788.8,0.78291]
[1743886934058,3.8986,1788.9,1788.8,0.78291]
[1743886936461,0.00838809,1789.0,1788.9,0.7829]
[1743886936657,0.00838809,1789.0,1788.9,4.3672]
[1743886937760,8.09e-06,1789.0,1788.9,6.8672]
[1743886938061,13.3168,1790.1,1789.6,0.78256]
[1743886938267,3.9386,1789.8,1789.7,4.58605]
[1743886939064,3.9386,1789.8,1789.7,3.8035]
[1743886939263,3.9386,1789.8,1789.7,4.58605]
[1743886940563,3.9386,1789.8,1789.7,0.78255]
[1743886940762,3.9386,1789.8,1789.6,0.79093809]
[1743886940960,3.9386,1789.8,1789.7,0.78255]
[1743886941161,4.72111,1789.8,1789.6,0.00838809]
[1743886941357,3.99035,1789.7,1789.6,0.00838809]
[1743886941558,6.49035,1789.7,1789.6,0.00838809]
[1743886942160,6.49035,1789.7,1789.1,3.6392]
[1743886942161,0.7827,1789.4,1789.1,3.6392]
[1743886942466,9.7304,1789.3,1789.2,0.78276]
[1743886942761,6.5226,1789.3,1789.2,0.78276]
[1743886943863,6.5226,1789.3,1789.2,4.44276]
[1743886945466,6.5226,1789.3,1789.2,3.66]
[1743886945668,6.5226,1789.3,1789.1,0.00838809]
[1743886945869,3.99056,1789.2,1789.1,0.00838809]
[1743886946068,3.8546,1789.2,1789.1,0.00838809]
[1743886946367,7.0624,1789.2,1789.1,0.00838809]
[1743886946665,4.63736,1789.2,1789.1,0.00838809]
[1743886947964,7.84516,1789.2,1789.1,0.00838809]
[1743886948665,0.78297,1788.8,1788.6,0.783]
[1743886948863,0.78305,1788.6,1788.4,0.78309]
[1743886949066,3.5942,1788.5,1788.3,9.51646793]
[1743886949269,3.5942,1788.5,1788.4,0.78312]
[1743886950371,4.37728,1788.5,1788.3,0.79151809]
[1743886950568,3.5942,1788.5,1788.4,0.78312]
[1743886951268,3.5942,1788.5,1788.3,0.00838809]
[1743886951472,3.5942,1788.5,1788.3,0.79151809]
[1743886951672,4.37728,1788.5,1788.3,0.79151809]
[1743886951977,2.9659,1788.4,1788.3,0.79151809]
[1743886952172,6.749,1788.4,1788.3,0.79151809]
[1743886952875,6.749,1788.4,1788.3,0.00838809]
[1743886953075,6.749,1788.4,1788.3,0.79154809]
[1743886954770,6.749,1788.4,1788.3,0.00838809]
[1743886955472,6.749,1788.4,1788.3,0.79154809]
[1743886955671,3.2078,1788.5,1788.3,0.00838809]
[1743886955872,6.848,1788.5,1788.4,0.78312]
[1743886956073,6.848,1788.5,1788.4,4.64582]
[1743886956579,6.848,1788.5,1788.4,3.8627]
[1743886956881,6.848,1788.5,1788.4,4.64582]
[1743886957078,3.6402,1788.5,1788.4,4.64582]
[1743886957574,3.6402,1788.5,1788.4,3.8627]
[1743886957775,3.6402,1788.5,1788.4,4.64582]
[1743886958479,0.78312,1788.4,1788.3,0.00838809]
[1743886958979,4.39072,1788.4,1788.3,0.00838809]
[1743886961175,0.78326,1788.1,1787.8,3.2078]
[1743886961378,6.6467,1788.0,1787.8,3.2078]
[1743886961574,6.6467,1788.0,1787.9,0.78333]
[1743886963276,6.6467,1788.0,1787.9,4.46043]
[1743886964280,9.5984,1788.0,1787.9,4.46043]
[1743886968181,0.78333,1787.9,1787.8,0.00559206]
[1743886968484,4.64363,1787.9,1787.8,0.00559206]
[1743886970477,3.2078,1788.0,1787.9,0.78333]
[1743886970681,3.707,1788.2,1788.1,0.78323]
[1743886970883,6.9148,1788.2,1788.1,0.78323]
[1743886971086,3.707,1788.2,1788.1,0.78323]
[1743886971478,7.69795,1788.4,1788.2,0.7832]
[1743886971677,7.69795,1788.4,1788.3,0.78316]
[1743886971678,6.9148,1788.4,1788.3,0.78316]
[1743886971880,6.9148,1788.4,1788.0,3.8855]
[1743886972080,0.78325,1788.1,1788.0,3.8855]
[1743886972482,3.707,1788.1,1788.0,4.66879]
[1743886972683,3.707,1788.1,1788.0,3.8855]
[1743886972981,4.49025,1788.1,1788.0,3.8855]
[1743886973784,7.42275,1788.1,1788.0,3.8855]
[1743886974185,6.6395,1788.1,1788.0,4.66879]
[1743886976389,7.42275,1788.1,1788.0,3.8855]
[1743886976992,7.42275,1788.1,1787.9,0.7833]
[1743886977190,7.01,1788.0,1787.9,0.7833]
[1743886977792,3.8022,1788.0,1787.9,0.7833]
[1743886978193,5.7702,1788.1,1788.0,0.78329]
[1743886978589,3.8022,1788.2,1788.1,0.78325]
[1743886978898,3.0849,1788.3,1788.2,0.7832]
[1743886979095,6.0758,1788.4,1788.3,0.78316]
[1743886981797,6.0758,1788.4,1788.2,4.71818]
[1743886982094,9.9531,1788.4,1788.2,4.71818]
[1743886982295,9.9531,1788.4,1788.3,0.78316]
[1743886982496,10.73622,1788.4,1788.2,4.71818]
[1743886982998,4.47806,1788.3,1788.2,3.935]
[1743886983301,0.7832,1788.2,1788.0,0.78326]
[1743886983603,6.7378,1788.2,1788.1,0.78325]
[1743886984299,6.7378,1788.2,1787.9,3.7333]
[1743886984493,3.6949,1788.1,1788.0,0.78329]
[1743886985587,4.47815,1788.1,1787.9,4.51661]
[1743886985993,3.5764,1788.0,1787.9,4.51661]
[1743886988198,6.0758,1788.4,1787.9,6.2333]
[1743886988401,6.4748,1788.5,1788.4,0.78312]
[1743886988794,0.00838809,1788.6,1788.5,0.78307]
[1743886989200,2.90678809,1788.6,1788.5,0.78307]
[1743886990292,7.28201809,1788.6,1788.4,3.754]
[1743886990497,10.48985809,1788.6,1788.3,0.78315]
[1743886990695,3.5922,1788.5,1788.3,0.78315]
[1743886991202,4.37527,1788.5,1788.3,0.78315]
[1743886991402,3.5922,1788.4,1788.3,0.78315]
[1743886991897,3.5922,1788.4,1788.2,7.919]
[1743886992109,2.8708,1788.3,1788.2,3.754]
[1743886992403,6.71706,1788.3,1788.1,0.78322]
[1743886992590,3.8258,1788.2,1788.1,3.9081]
[1743886992897,3.8258,1788.2,1787.8,0.00559206]
[1743886992898,0.78327,1788.1,1787.8,0.00559206]
[1743886993103,3.8258,1788.0,1787.8,0.00559206]
[1743886993300,3.8258,1788.0,1787.8,3.91369206]
[1743886993801,3.8258,1788.0,1787.9,0.78331]
[1743886994197,5.9339,1788.3,1788.1,0.78325]
[1743886994397,0.78322,1788.2,1788.0,0.78326]
[1743886994597,4.60902,1788.2,1788.0,0.78326]
[1743886995806,3.6454,1788.1,1788.0,0.78326]
[1743886996006,4.42865,1788.1,1787.9,4.6914]
[1743886996505,3.6454,1788.0,1787.9,4.6914]
[1743886996698,6.4869,1788.0,1787.9,4.6914]
[1743886998307,6.4869,1788.0,1787.9,0.7833]
[1743886998911,0.78333,1787.9,1787.8,0.00559206]
[1743886999195,6.8436,1787.9,1787.8,0.00559206]
[1743886999396,7.62693,1787.9,1787.8,0.00559206]
[1743887000097,0.78349,1787.6,1787.4,3.99134]
[1743887000297,8.00763,1788.0,1787.2,3.6692]
[1743887000298,13.75882,1787.5,1787.2,3.6692]
[1743887000594,4.67885,1787.4,1787.2,4.45282]
[1743887000798,3.6935,1787.3,1787.2,4.45282]
[1743887001203,3.6935,1787.3,1787.1,9.51701793]
[1743887001410,0.78364,1787.2,1787.1,8.73334793]
[1743887001601,7.68493,1787.3,1787.1,8.73334793]
[1743887001799,3.6935,1787.2,1787.1,8.73334793]
[1743887001995,4.47714,1787.2,1787.1,8.73334793]
[1743887002399,3.6935,1787.2,1787.1,8.73334793]
[1743887002601,4.47714,1787.2,1787.1,8.73334793]
[1743887003300,6.97714,1787.2,1787.1,8.73334793]
[1743887003502,6.97714,1787.2,1786.8,0.78379]
[1743887003503,0.78375,1787.0,1786.8,0.78379]
[1743887003805,3.6935,1786.9,1786.7,4.39313]
[1743887004215,3.6935,1786.9,1786.8,0.78382]
[1743887005903,4.47728,1786.9,1786.7,0.78384]
[1743887006113,0.78383,1786.8,1786.6,0.78387]
[1743887006305,6.607,1786.7,1786.5,0.78393]
[1743887006610,9.4284,1786.7,1786.5,0.78393]
[1743887007308,9.4284,1786.7,1786.6,0.7839]
[1743887008806,9.4284,1786.7,1786.5,0.78394]
[1743887009507,9.4284,1786.7,1786.3,3.2078]
[1743887009716,9.4284,1786.7,1785.8,3.9273]
[1743887009717,3.2078,1786.4,1785.8,3.9273]
[1743887010009,9.3755,1786.3,1786.2,0.78408]
[1743887010214,9.38388809,1786.3,1786.1,0.78409]
[1743887010414,10.16792809,1786.3,1786.1,0.78409]
[1743887010712,9.38388809,1786.3,1786.0,3.6447]
[1743887010913,9.38388809,1786.3,1786.1,0.78409]
[1743887011117,10.16792809,1786.3,1786.1,0.78409]
[1743887011314,0.7841,1786.2,1786.0,3.6447]
[1743887011510,4.41633,1786.1,1785.9,0.78419]
[1743887011707,3.6322,1786.1,1785.9,0.78419]
[1743887013412,3.6322,1786.1,1786.0,0.78417]
[1743887013816,6.9343,1786.2,1786.1,0.78412]
[1743887014513,3.2078,1786.2,1786.1,0.78412]
[1743887015114,6.9343,1786.2,1786.1,3.8197]
[1743887015510,7.71839,1786.2,1785.9,0.78418]
[1743887015713,3.7265,1786.1,1785.9,0.78418]
[1743887016014,3.7265,1786.1,1786.0,0.78417]
[1743887016216,3.7265,1786.1,1785.9,0.78418]
[1743887017020,0.78426,1785.8,1785.6,3.99212]
[1743887017215,3.6287,1785.7,1785.6,0.78434]
[1743887017418,4.16,1785.8,1785.7,0.7843]
[1743887018213,10.3107,1786.1,1786.0,0.78417]
[1743887018408,3.6287,1786.2,1786.1,0.78412]
[1743887018709,0.00838809,1786.3,1786.2,0.78408]
[1743887019814,0.00838809,1786.3,1786.2,3.87618]
[1743887020212,0.00838809,1786.3,1786.2,7.78378]
[1743887022215,3.2078,1786.7,1786.6,0.7839]
[1743887022415,6.7879,1786.7,1786.6,0.7839]
[1743887023817,6.7879,1786.7,1786.6,4.6826]
[1743887024309,6.7879,1786.7,1786.6,3.8987]
[1743887024713,6.7879,1786.7,1786.5,0.79230809]
[1743887024915,3.5801,1786.6,1786.5,0.79230809]
[1743887029514,10.2371,1786.6,1786.0,3.2078]
[1743887029719,3.99185,1786.3,1786.0,0.78414]
[1743887029926,3.75008,1786.2,1785.9,4.73047]
[1743887030228,6.911,1786.2,1786.1,0.78412]
[1743887030419,6.911,1786.2,1786.0,0.78414]
[1743887031021,3.8016,1786.1,1786.0,0.78414]
[1743887032022,3.8016,1786.1,1785.9,3.9463]
[1743887032227,3.8016,1786.1,1786.0,0.78417]
[1743887033423,4.58573,1786.1,1785.9,3.9463]
[1743887033623,3.0447,1786.0,1785.8,3.99202]
[1743887033818,6.8463,1786.0,1785.9,0.78421]
[1743887034828,6.8463,1786.0,1785.8,3.2078]
[1743887035129,3.0447,1786.0,1785.9,0.78421]
[1743887035329,3.0447,1786.0,1785.9,4.42311]
[1743887036331,6.9573,1786.0,1785.9,4.42311]
[1743887037329,2.966,1786.2,1786.1,0.78412]
[1743887037631,7.52901,1786.2,1786.0,0.78415]
[1743887037832,6.7449,1786.2,1786.0,0.78415]
[1743887038032,3.7789,1786.1,1786.0,0.78415]
[1743887040334,3.99169,1786.7,1786.1,1.96032]
[1743887040534,10.55142,1786.6,1786.4,0.78397]
[1743887040731,3.771,1786.5,1786.4,0.78397]
[1743887042726,3.771,1786.5,1786.2,0.78406]
[1743887042727,0.78399,1786.4,1786.2,0.78406]
[1743887042929,3.771,1786.3,1786.2,0.78406]
[1743887047142,10.1505,1786.6,1786.4,0.78397]
[1743887047343,3.6689,1786.5,1786.4,0.78397]
[1743887054938,5.9965,1786.6,1786.5,0.78395]
[1743887056244,9.8272,1786.6,1786.5,0.78395]
[1743887058547,4.16038809,1786.8,1786.5,0.78395]
[1743887058548,0.00838809,1786.8,1786.7,0.78386]
[1743887058743,3.59078809,1786.8,1786.7,0.78386]
[1743887061346,3.59078809,1786.8,1786.6,4.50177]
[1743887061552,6.9151,1786.7,1786.4,0.78397]
[1743887061748,7.3105,1786.6,1786.4,0.78399]
[1743887061940,3.6224,1786.5,1786.4,0.78399]
[1743887062146,3.6224,1786.5,1786.3,3.99182]
[1743887062346,2.9234,1786.4,1786.3,3.99182]
[1743887062646,2.9234,1786.4,1786.0,35.281]
[1743887062647,3.70739,1786.4,1786.0,35.281]
[1743887062846,3.6224,1786.3,1786.2,0.78407]
[1743887070059,2.9234,1786.4,1786.3,0.78404]
[1743887070352,2.9042,1786.6,1786.5,0.78395]
[1743887071762,6.6063,1786.6,1786.5,0.78395]
[1743887074956,9.8141,1786.6,1786.0,3.2078]
[1743887075157,0.78399,1786.4,1786.2,0.78406]
[1743887075361,6.6477,1786.3,1786.2,0.78406]
[1743887083965,6.89591,1786.6,1786.3,0.784]
[1743887084165,6.7771,1786.5,1786.3,0.784]
[1743887084359,3.745,1786.4,1786.3,0.784]
[1743887084559,3.745,1786.4,1786.2,0.78405]
[1743887084966,3.745,1786.4,1786.1,4.3997]
[1743887085162,4.52902,1786.4,1786.2,0.78408]
[1743887085666,3.745,1786.3,1786.2,0.78408]
[1743887086361,4.52904,1786.3,1786.1,4.39969]
[1743887086560,3.64318,1786.2,1786.0,0.78414]
[1743887086760,10.21748,1786.2,1785.9,0.78418]
[1743887087167,3.748,1786.1,1786.0,0.78417]
[1743887087367,3.748,1786.1,1785.9,0.78417]
[1743887087768,3.748,1786.1,1786.0,0.78417]
[1743887087965,4.53212,1786.1,1785.9,0.78418]
[1743887088160,3.748,1786.1,1785.9,0.78418]
[1743887088361,3.748,1786.1,1786.0,0.78417]
[1743887089669,3.748,1786.1,1785.9,4.58477]
[1743887090471,3.748,1786.1,1786.0,0.78417]
[1743887090768,4.53212,1786.1,1785.9,0.78419]
[1743887091269,3.7158,1786.0,1785.9,0.78419]
[1743887095568,4.49997,1786.0,1785.8,0.78423]
[1743887095775,3.62751,1785.9,1785.7,0.78428]
[1743887096076,2.8036,1785.8,1785.7,0.78428]
[1743887096666,6.7377,1785.8,1785.7,0.78428]
[1743887099377,6.7377,1785.8,1785.6,4.70472]
[1743887099674,7.52196,1785.8,1785.6,0.78432]
[1743887099875,3.7849,1785.7,1785.6,0.78432]
[1743887100469,0.00838809,1785.9,1785.8,0.78426]
[1743887100876,0.00838809,1785.9,1785.8,4.63986]
[1743887105680,0.79261809,1785.9,1785.7,3.99207]
[1743887105875,3.7266,1785.8,1785.7,3.99207]
[1743887106075,6.6773,1785.8,1785.7,3.2078]
[1743887106577,6.6773,1785.8,1785.7,3.9921]
[1743887108982,6.6773,1785.8,1785.7,3.2078]
[1743887109582,7.46156,1785.8,1785.6,0.78432]
[1743887109776,7.46156,1785.8,1785.4,38.4878]
[1743887109777,7.46342,1785.7,1785.4,3.2078]
[1743887109976,3.8287,1785.6,1785.4,6.9997]
[1743887110475,3.8287,1785.6,1785.5,0.78437]
[1743887110682,3.8287,1785.6,1785.5,4.49877]
[1743887111473,2.8504,1785.7,1785.6,0.78434]
[1743887111677,2.8504,1785.7,1785.6,4.49874]
[1743887112281,6.8068,1785.8,1785.6,4.49874]
[1743887112282,6.8068,1785.8,1785.7,0.7843]
[1743887112488,6.8068,1785.8,1785.7,4.4987]
[1743887115081,6.8068,1785.8,1785.6,0.78431]
[1743887115379,6.4772,1785.7,1785.6,0.78431]
[1743887116484,6.4772,1785.7,1785.5,0.78436]
[1743887116684,3.7545,1785.6,1785.5,0.78436]
[1743887117285,3.7545,1785.6,1785.4,6.7823]
[1743887117489,2.9018,1785.5,1785.3,0.78443]
[1743887117683,3.7545,1785.4,1785.3,0.78443]
[1743887119582,3.7545,1785.4,1785.3,0.78447]
[1743887120788,3.7545,1785.4,1785.2,4.359]
[1743887120990,2.9567,1785.3,1785.2,4.359]
[1743887128899,2.9567,1785.3,1785.2,0.7845]
[1743887129393,2.9567,1785.3,1785.1,6.9346]
[1743887129594,7.23502,1785.2,1785.1,3.2078]
[1743887129902,7.23502,1785.2,1784.9,0.78462]
[1743887130097,3.5958,1785.1,1784.9,0.78462]
[1743887130295,3.5958,1785.1,1785.0,0.78461]
[1743887130998,3.5958,1785.1,1784.9,0.78465]
[1743887131298,3.5958,1785.1,1785.0,0.78461]
[1743887132795,3.5958,1785.1,1784.9,4.42012]
[1743887132999,3.5958,1785.1,1784.9,0.78462]
[1743887133295,4.38037,1785.1,1784.8,0.78465]
[1743887133497,3.5958,1785.1,1784.9,0.78464]
[1743887133697,3.7352,1785.0,1784.9,0.78464]
[1743887134801,2.8547,1785.2,1784.8,6.0319]
[1743887134998,6.6356,1785.2,1785.0,0.78457]
[1743887135400,3.7809,1785.1,1785.0,0.78457]
[1743887137496,2.8547,1785.2,1785.1,0.78456]
[1743887137694,6.51,1785.2,1785.1,0.78456]
[1743887138303,2.9567,1785.3,1785.2,0.78452]
[1743887138503,10.51653,1785.7,1785.1,14.61453]
[1743887138702,10.51653,1785.7,1785.1,18.34963]
[1743887138903,10.51653,1785.7,1785.5,0.78439]
[1743887138904,3.6553,1785.6,1785.5,0.78439]
[1743887139204,2.8691,1785.7,1785.6,0.78434]
[1743887139506,3.07,1785.8,1785.7,0.7843]
[1743887139703,10.37866,1785.8,1785.5,6.9429]
[1743887139906,10.37866,1785.8,1785.5,7.72725]
[1743887140106,3.6553,1785.7,1785.6,0.78434]
[1743887142806,3.6553,1785.7,1785.5,7.72726]
[1743887144408,4.4396,1785.7,1785.5,6.9429]
[1743887144599,4.4396,1785.7,1785.5,3.99219]
[1743887144800,3.9399,1785.6,1785.5,3.99219]
[1743887145907,3.9399,1785.6,1785.5,7.94979]
[1743887146105,3.9399,1785.6,1785.5,3.2078]
[1743887146309,4.72426,1785.6,1785.2,3.9576]
[1743887146510,2.8279,1785.5,1785.2,3.9576]
[1743887146811,6.5018,1785.4,1785.3,0.78443]
[1743887147205,6.5018,1785.4,1785.3,4.43053]
[1743887147404,2.8279,1785.5,1785.4,0.78443]
[1743887147604,2.8279,1785.5,1785.4,4.43053]
[1743887147807,8.12742809,1785.9,1785.4,4.43053]
[1743887147808,0.00838809,1785.9,1785.7,0.78428]
[1743887148109,9.33808809,1785.9,1785.7,0.78428]
[1743887148409,3.5939,1785.8,1785.7,0.78428]
[1743887148807,0.00838809,1785.9,1785.8,0.78426]
[1743887149003,0.00838809,1785.9,1785.8,6.38866]
[1743887149200,3.99174,1786.6,1786.3,0.78403]
[1743887149409,3.5939,1786.4,1786.3,0.78403]
[1743887149609,23.13768756,1786.8,1786.5,0.78392]
[1743887149809,3.7269,1786.7,1786.6,0.7839]
[1743887151013,3.7269,1786.7,1786.3,7.3338]
[1743887151214,3.7269,1786.7,1786.3,3.2078]
[1743887151404,0.78392,1786.6,1786.3,0.78402]
[1743887151711,4.51086,1786.5,1786.2,0.78406]
[1743887151908,3.085,1786.4,1786.2,0.78406]
[1743887152108,3.7269,1786.3,1786.1,4.90909]
[1743887152714,3.7269,1786.3,1786.1,0.78409]
[1743887152914,2.8284,1786.2,1786.1,0.78409]
[1743887153217,2.8284,1786.2,1785.9,3.2078]
[1743887153409,3.8315,1786.1,1785.9,3.2078]
[1743887153605,3.8315,1786.1,1786.0,0.78417]
[1743887153915,7.0393,1786.1,1785.9,0.78418]
[1743887154116,3.8315,1786.1,1785.9,0.78418]
[1743887154714,3.085,1786.4,1786.1,0.78409]
[1743887154914,6.6599,1786.3,1786.1,0.78409]
[1743887155314,6.6599,1786.3,1786.1,0.78412]
[1743887156219,6.6599,1786.3,1786.2,0.78408]
[1743887158418,6.6599,1786.3,1786.1,0.78411]
[1743887159119,6.6599,1786.3,1786.2,0.78408]
[1743887160817,8.12102809,1786.8,1786.2,3.2078]
[1743887161016,9.6356,1786.7,1786.3,3.5919]
[1743887161217,3.6506,1786.6,1786.5,0.78391]
[1743887161516,4.43451,1786.6,1786.4,0.78395]
[1743887161819,4.43451,1786.6,1786.3,4.37591]
[1743887162020,3.823,1786.5,1786.3,4.37591]
[1743887162220,3.823,1786.5,1786.4,0.78399]
[1743887164521,3.823,1786.5,1786.4,3.99179]
[1743887166919,6.76887,1786.7,1786.5,0.78394]
[1743887167221,10.63987,1786.7,1786.5,4.50524]
[1743887167432,3.871,1786.6,1786.5,4.50524]
[1743887167622,3.871,1786.6,1786.5,3.7213]
[1743887168225,7.0788,1786.6,1786.2,3.2897]
[1743887168424,3.2078,1786.4,1786.2,0.0819]
[1743887168627,5.6405,1786.3,1786.2,0.0819]
[1743887168924,5.6405,1786.3,1786.2,0.78408]
[1743887169319,9.5647,1786.3,1786.2,0.78408]
[1743887171821,9.5647,1786.3,1786.1,4.73789]
[1743887172021,3.8147,1786.2,1786.1,4.73789]
[1743887172724,5.6405,1786.3,1786.2,0.78408]
[1743887172926,3.8147,1786.4,1786.3,0.78404]
[1743887173931,9.7499,1787.1,1786.7,0.78386]
[1743887174219,7.91223,1787.0,1786.7,0.78386]
[1743887174429,4.70447,1786.9,1786.6,8.72307]
[1743887174623,4.70447,1786.9,1786.6,4.90087]
[1743887174923,2.93428809,1786.8,1786.6,4.90087]
[1743887175228,6.93,1786.7,1786.5,3.99172]
[1743887175421,3.9207,1786.6,1786.4,0.78396]
[1743887175619,4.70461,1786.6,1786.3,4.90101]
[1743887175815,0.78399,1786.4,1786.1,1.10229]
[1743887176021,10.1378,1786.3,1786.2,0.78408]
[1743887176320,10.1378,1786.3,1786.1,1.10229]
[1743887176523,6.8466,1786.2,1786.1,1.10229]
[1743887176829,7.63068,1786.2,1786.0,0.86604]
[1743887177034,3.9207,1786.1,1786.0,0.0819]
[1743887177322,3.9207,1786.1,1786.0,0.78417]
[1743887177725,7.91264,1786.1,1785.6,6.1679]
[1743887177924,0.7842,1786.0,1785.7,0.79266809]
[1743887178221,3.2078,1785.8,1785.7,0.00838809]
[1743887178421,3.2078,1785.8,1785.7,0.79268809]
[1743887178619,3.8636,1785.8,1785.7,0.79268809]
[1743887180122,5.8344,1785.9,1785.7,0.79268809]
[1743887180323,9.751,1786.2,1785.8,3.9273]
[1743887180629,3.9349,1786.1,1786.0,0.78417]
[1743887182028,3.9349,1786.1,1786.0,4.71147]
[1743887183229,3.9349,1786.1,1786.0,0.78417]
[1743887183427,3.9349,1786.1,1786.0,4.41547]
[1743887183627,3.9349,1786.1,1786.0,0.78417]
[1743887183828,3.9349,1786.1,1785.9,0.78418]
[1743887187136,3.9349,1786.1,1786.0,0.78417]
[1743887188232,3.9349,1786.1,1786.0,3.99197]
[1743887188623,3.9349,1786.1,1786.0,0.78417]
[1743887188828,3.9349,1786.1,1786.0,4.53277]
[1743887190433,3.2078,1786.5,1786.0,4.53277]
[1743887190434,3.2078,1786.5,1786.0,3.7486]
[1743887190636,9.8204,1786.5,1786.4,0.78399]
[1743887190834,0.00838809,1786.8,1786.3,1.96004]
[1743887191035,3.8679,1786.7,1786.6,0.7839]
[1743887191532,2.94208809,1786.8,1786.7,0.78386]
[1743887192334,2.94208809,1786.8,1786.6,4.43729]
[1743887192533,3.8102,1786.7,1786.6,4.43729]
[1743887194233,3.8102,1786.7,1786.6,0.78389]
[1743887196442,3.8102,1786.7,1786.5,3.6597]
[1743887196743,2.7921,1786.6,1786.5,0.78393]
[1743887197742,2.7921,1786.6,1786.5,4.44363]
[1743887198137,2.7921,1786.6,1786.4,0.78396]